fUSD/lending_fUSD_20240425
["ID","MTS","AMOUNT","RATE_DAILY","PERIOD"]
[323508512,1714059054302,-500.0,0.00011272,2]
[323508513,1714059054311,-500.0,0.00011272,2]
[323508514,1714059054321,-500.0,0.00011272,2]
[323508515,1714059054331,-500.0,0.00011272,2]
[323508516,1714059054341,-500.0,0.00011272,2]
[323508517,1714059054351,-500.0,0.00011272,2]
[323508518,1714059054360,-618.10990682,0.00011272,2]
[323508519,1714059054369,-500.0,0.00011272,2]
[323508520,1714059054378,-500.0,0.00011272,2]
[323508521,1714059054388,-585.83785678,0.00011272,2]
[323508522,1714059054397,-500.0,0.00011272,2]
[323508523,1714059054406,-507.69751379,0.00011272,2]
[323508524,1714059054415,-503.88767196,0.00011272,2]
[323508525,1714059054425,-503.2089817,0.00011272,2]
[323508526,1714059054434,-500.0,0.00011272,2]
[323508527,1714059054443,-500.0,0.00011272,2]
[323508528,1714059054452,-623.12383961,0.00011272,2]
[323508529,1714059054461,-500.0,0.00011272,2]
[323508530,1714059054470,-500.0,0.00011272,2]
[323508531,1714059054479,-500.0,0.00011272,2]
[323508532,1714059054489,-500.0,0.00011272,2]
[323508533,1714059054498,-500.0,0.00011272,2]
[323508534,1714059054507,-500.0,0.00011272,2]
[323508535,1714059054517,-500.0,0.00011272,2]
[323508536,1714059054526,-506.31406062,0.00011272,2]
[323508537,1714059054536,-168.66073842,0.00011272,2]
[323508538,1714059054545,-500.0,0.00011272,2]
[323508539,1714059054555,-500.0,0.00011272,2]
[323508540,1714059054564,-500.0,0.00011272,2]
[323508541,1714059054573,-500.0,0.00011272,2]
[323508542,1714059054583,-500.0,0.00011272,2]
[323508543,1714059054592,-500.0,0.00011272,2]
[323508544,1714059054601,-500.0,0.00011272,2]
[323508545,1714059054610,-500.0,0.00011272,2]
[323508546,1714059054619,-503.05062373,0.00011272,2]
[323508547,1714059054628,-500.0,0.00011272,2]
[323508548,1714059054637,-571.84,0.00011272,2]
[323508549,1714059054646,-500.0,0.00011272,2]
[323508550,1714059054656,-500.0,0.00011272,2]
[323508551,1714059054665,-500.0,0.00011272,2]
[323508552,1714059054674,-500.0,0.00011272,2]
[323508553,1714059054683,-500.0,0.00011272,2]
[323508554,1714059054692,-500.0,0.00011272,2]
[323508555,1714059054701,-500.0,0.00011272,2]
[323508556,1714059054710,-500.0,0.00011272,2]
[323508557,1714059054719,-500.0,0.00011272,2]
[323508558,1714059054729,-500.0,0.00011272,2]
[323508559,1714059054738,-500.0,0.00011272,2]
[323508560,1714059054751,-500.0,0.00011272,2]
[323508561,1714059054760,-500.0,0.00011272,2]
[323508562,1714059054772,-500.0,0.00011272,2]
[323508563,1714059054781,-500.0,0.00011272,2]
[323508564,1714059054790,-500.0,0.00011272,2]
[323508565,1714059054800,-500.0,0.00011272,2]
[323508566,1714059054810,-500.0,0.00011272,2]
[323508567,1714059054820,-500.0,0.00011272,2]
[323508568,1714059054831,-500.0,0.00011272,2]
[323508569,1714059054842,-500.0,0.00011272,2]
[323508570,1714059054852,-507.71,0.00011272,2]
[323508571,1714059054861,-501.69003278,0.00011272,2]
[323508572,1714059054871,-500.0,0.00011272,2]
[323508573,1714059054880,-290.40471269,0.00011272,2]
[323508574,1714059054890,-500.0,0.00011272,2]
[323508575,1714059054900,-500.0,0.00011272,2]
[323508576,1714059054909,-500.0,0.00011273,2]
[323508577,1714059054920,-500.0,0.00011273,2]
[323508578,1714059054930,-500.0,0.00011273,2]
[323508579,1714059054939,-500.0,0.00011273,2]
[323508580,1714059054951,-500.0,0.00011273,2]
[323508581,1714059054962,-500.0,0.00011273,2]
[323508582,1714059054972,-458.36910419,0.00011273,2]
[323508583,1714059054982,-575.4,0.00011273,2]
[323508584,1714059054992,-500.0,0.00011273,2]
[323508585,1714059055002,-500.0,0.00011273,2]
[323508586,1714059055012,-500.0,0.00011273,2]
[323508587,1714059055022,-500.0,0.00011273,2]
[323508588,1714059055031,-500.0,0.00011273,2]
[323508589,1714059055041,-500.0,0.00011273,2]
[323508590,1714059055051,-500.0,0.00011273,2]
[323508591,1714059055060,-500.0,0.00011273,2]
[323508592,1714059055069,-500.0,0.00011273,2]
[323508593,1714059055079,-500.0,0.00011273,2]
[323508594,1714059055089,-500.0,0.00011273,2]
[323508595,1714059055098,-500.0,0.00011273,2]
[323508596,1714059055107,-543.1712523,0.00011273,2]
[323508597,1714059055116,-500.0,0.00011273,2]
[323508598,1714059055126,-500.0,0.00011273,2]
[323508599,1714059055135,-530.5,0.00011273,2]
[323508600,1714059055146,-299.83216967,0.00011273,2]
[323508601,1714059055155,-561.91719443,0.00011273,2]
[323508602,1714059055164,-500.0,0.00011273,2]
[323508603,1714059055173,-500.0,0.00011273,2]
[323508604,1714059055182,-500.0,0.00011273,2]
[323508605,1714059055194,-500.0,0.00011273,2]
[323508606,1714059055203,-500.0,0.00011273,2]
[323508607,1714059055212,-500.0,0.00011273,2]
[323508608,1714059055223,-500.0,0.00011273,2]
[323508609,1714059055233,-500.0,0.00011273,2]
[323508610,1714059055243,-500.0,0.00011273,2]
[323508611,1714059055253,-500.0,0.00011273,2]
[323508612,1714059055262,-500.0,0.00011273,2]
[323508613,1714059055274,-500.0,0.00011273,2]
[323508614,1714059055283,-504.42,0.00011273,2]
[323508615,1714059055294,-516.52,0.00011273,2]
[323508616,1714059055303,-500.0,0.00011273,2]
[323508617,1714059055313,-500.0,0.00011273,2]
[323508618,1714059055322,-500.0,0.00011273,2]
[323508619,1714059055332,-500.0,0.00011273,2]
[323508620,1714059055342,-628.21,0.00011273,2]
[323508621,1714059055351,-500.0,0.00011273,2]
[323508622,1714059055360,-500.0,0.00011273,2]
[323508623,1714059055369,-500.0,0.00011273,2]
[323508624,1714059055378,-500.0,0.00011273,2]
[323508625,1714059055388,-500.0,0.00011273,2]
[323508626,1714059055397,-500.0,0.00011273,2]
[323508627,1714059055407,-500.0,0.00011273,2]
[323508628,1714059055417,-500.0,0.00011273,2]
[323508629,1714059055426,-227.11100633,0.00011273,2]
[323508630,1714059055435,-500.0,0.00011273,2]
[323508631,1714059055445,-153.69872448,0.00011273,2]
[323508632,1714059055454,-154.5209881,0.00011273,2]
[323508633,1714059055463,-500.0,0.00011273,2]
[323508634,1714059055472,-500.0,0.00011273,2]
[323508635,1714059055481,-500.0,0.00011273,2]
[323508636,1714059055490,-500.0,0.00011273,2]
[323508637,1714059055499,-500.0,0.00011273,2]
[323508638,1714059055507,-500.0,0.00011273,2]
[323508639,1714059055518,-500.0,0.00011273,2]
[323508640,1714059055528,-500.0,0.00011273,2]
[323508641,1714059055537,-500.0,0.00011273,2]
[323508642,1714059055546,-500.0,0.00011273,2]
[323508643,1714059055556,-500.0,0.00011273,2]
[323508644,1714059055565,-500.0,0.00011273,2]
[323508645,1714059055574,-500.0,0.00011273,2]
[323508646,1714059055583,-500.0,0.00011273,2]
[323508647,1714059055592,-500.0,0.00011273,2]
[323508648,1714059055601,-460.71191539,0.00011273,2]
[323508649,1714059055610,-500.0,0.00011273,2]
[323508650,1714059055619,-500.0,0.00011273,2]
[323508651,1714059055628,-500.0,0.00011273,2]
[323508652,1714059055637,-500.0,0.00011273,2]
[323508653,1714059055647,-597.25606466,0.00011273,2]
[323508654,1714059055656,-500.0,0.00011273,2]
[323508655,1714059055665,-500.0,0.00011273,2]
[323508656,1714059055676,-618.92,0.00011273,2]
[323508657,1714059055687,-500.0,0.00011273,2]
[323508658,1714059055697,-500.0,0.00011273,2]
[323508659,1714059055707,-500.0,0.00011273,2]
[323508660,1714059055716,-583.82417728,0.00011273,2]
[323508661,1714059055728,-500.0,0.00011273,2]
[323508662,1714059055738,-500.0,0.00011273,2]
[323508663,1714059055753,-500.0,0.00011273,2]
[323508664,1714059055763,-150.0,0.00011273,2]
[323508665,1714059055777,-500.0,0.00011273,2]
[323508666,1714059055787,-500.0,0.00011273,2]
[323508667,1714059055796,-563.86,0.00011273,2]
[323508668,1714059055806,-300.32,0.00011273,2]
[323508669,1714059055815,-500.0,0.00011273,2]
[323508670,1714059055824,-504.80855703,0.00011273,2]
[323508671,1714059055834,-500.0,0.00011273,2]
[323508672,1714059055843,-500.0,0.00011273,2]
[323508673,1714059055852,-500.0,0.00011273,2]
[323508674,1714059055861,-500.0,0.00011273,2]
[323508675,1714059055870,-500.0,0.00011273,2]
[323508676,1714059055880,-196.65,0.00011273,2]
[323508677,1714059055889,-500.0,0.00011273,2]
[323508678,1714059055898,-316.47042021,0.00011273,2]
[323508679,1714059055907,-578.94640226,0.00011273,2]
[323508680,1714059055917,-500.0,0.00011273,2]
[323508681,1714059055927,-500.0,0.00011273,2]
[323508682,1714059055937,-500.0,0.00011273,2]
[323508683,1714059055948,-500.0,0.00011273,2]
[323508684,1714059055957,-500.0,0.00011273,2]
[323508685,1714059055967,-500.0,0.00011273,2]
[323508686,1714059055977,-500.0,0.00011273,2]
[323508687,1714059055986,-588.75,0.00011273,2]
[323508688,1714059055995,-500.0,0.00011273,2]
[323508689,1714059056004,-500.0,0.00011273,2]
[323508690,1714059056014,-409.95577367,0.00011273,2]
[323508691,1714059056029,-500.0,0.00011273,2]
[323508692,1714059056039,-500.0,0.00011273,2]
[323508693,1714059056047,-500.0,0.00011273,2]
[323508694,1714059056056,-500.0,0.00011273,2]
[323508695,1714059056066,-500.0,0.00011273,2]
[323508696,1714059056075,-500.0,0.00011273,2]
[323508697,1714059056084,-328.45998132,0.00011273,2]
[323508698,1714059056093,-214.08159999,0.00011273,2]
[323508699,1714059056102,-643.58,0.00011273,2]
[323508700,1714059056111,-500.0,0.00011273,2]
[323508701,1714059056120,-500.0,0.00011273,2]
[323508702,1714059056129,-500.0,0.00011273,2]
[323508703,1714059056138,-555.94,0.00011273,2]
[323508704,1714059056147,-500.0,0.00011273,2]
[323508705,1714059056156,-500.0,0.00011273,2]
[323508706,1714059056165,-500.0,0.00011273,2]
[323508707,1714059056174,-500.0,0.00011273,2]
[323508708,1714059056183,-500.0,0.00011273,2]
[323508709,1714059056193,-500.0,0.00011273,2]
[323508710,1714059056202,-500.0,0.00011273,2]
[323508711,1714059056211,-500.0,0.00011273,2]
[323508712,1714059056221,-500.0,0.00011273,2]
[323508713,1714059056230,-500.0,0.00011273,2]
[323508714,1714059056240,-500.0,0.00011273,2]
[323508715,1714059056249,-500.0,0.00011273,2]
[323508716,1714059056259,-500.0,0.00011273,2]
[323508717,1714059056270,-500.0,0.00011273,2]
[323508718,1714059056279,-417.06,0.00011273,2]
[323508719,1714059056288,-500.0,0.00011273,2]
[323508720,1714059056442,-500.0,0.00011273,2]
[323508721,1714059056451,-500.0,0.00011273,2]
[323508722,1714059056461,-500.0,0.00011273,2]
[323508723,1714059056471,-500.0,0.00011273,2]
[323508724,1714059056480,-500.0,0.00011273,2]
[323508725,1714059056489,-500.0,0.00011273,2]
[323508726,1714059056499,-228.38,0.00011273,2]
[323508727,1714059056509,-500.0,0.00011273,2]
[323508728,1714059056524,-500.0,0.00011273,2]
[323508729,1714059056533,-500.0,0.00011273,2]
[323508730,1714059056542,-278.71344293,0.00011273,2]
[323508731,1714059056551,-500.0,0.00011273,2]
[323508732,1714059056560,-500.0,0.00011273,2]
[323508733,1714059056570,-500.0,0.00011273,2]
[323508734,1714059056579,-500.0,0.00011273,2]
[323508735,1714059056589,-500.0,0.00011273,2]
[323508736,1714059056598,-500.0,0.00011273,2]
[323508737,1714059056607,-500.0,0.00011273,2]
[323508738,1714059056616,-500.0,0.00011273,2]
[323508739,1714059056626,-500.0,0.00011273,2]
[323508740,1714059056635,-500.0,0.00011273,2]
[323508741,1714059056645,-500.0,0.00011273,2]
[323508742,1714059056653,-500.0,0.00011273,2]
[323508743,1714059056662,-500.0,0.00011273,2]
[323508744,1714059056673,-459.75452222,0.00011273,2]
[323508745,1714059056682,-383.42892835,0.00011273,2]
[323508746,1714059056691,-504.26802248,0.00011273,2]
[323508747,1714059056700,-500.0,0.00011273,2]
[323508748,1714059056710,-500.0,0.00011273,2]
[323508749,1714059056719,-500.0,0.00011273,2]
[323508750,1714059056730,-500.0,0.00011273,2]
[323508751,1714059056740,-500.0,0.00011273,2]
[323508752,1714059056751,-507.19493994,0.00011273,2]
[323508753,1714059056760,-368.75,0.00011273,2]
[323508754,1714059056772,-500.0,0.00011273,2]
[323508755,1714059056782,-500.0,0.00011273,2]
[323508756,1714059056791,-500.0,0.00011273,2]
[323508757,1714059056800,-500.0,0.00011273,2]
[323508758,1714059056810,-176.58699204,0.00011273,2]
[323508759,1714059056821,-500.0,0.00011273,2]
[323508760,1714059056830,-177.61273052,0.00011273,2]
[323508761,1714059056839,-594.89,0.00011273,2]
[323508762,1714059056849,-500.0,0.00011273,2]
[323508763,1714059056858,-500.0,0.00011273,2]
[323508764,1714059056867,-446.96902616,0.00011273,2]
[323508765,1714059056876,-291.52278743,0.00011273,2]
[323508766,1714059056885,-500.0,0.00011273,2]
[323508767,1714059056894,-500.0,0.00011273,2]
[323508768,1714059056904,-500.0,0.00011273,2]
[323508769,1714059056913,-500.0,0.00011273,2]
[323508770,1714059056923,-500.0,0.00011273,2]
[323508771,1714059056932,-500.0,0.00011273,2]
[323508772,1714059056942,-282.09,0.00011273,2]
[323508773,1714059056951,-500.0,0.00011273,2]
[323508774,1714059056960,-500.0,0.00011273,2]
[323508775,1714059056970,-500.0,0.00011273,2]
[323508776,1714059056980,-594.8,0.00011273,2]
[323508777,1714059056990,-500.0,0.00011273,2]
[323508778,1714059056999,-500.0,0.00011273,2]
[323508779,1714059057008,-500.0,0.00011273,2]
[323508780,1714059057018,-500.0,0.00011273,2]
[323508781,1714059057027,-260.44,0.00011273,2]
[323508782,1714059057037,-500.0,0.00011273,2]
[323508783,1714059057048,-500.0,0.00011273,2]
[323508784,1714059057057,-500.0,0.00011273,2]
[323508785,1714059057067,-500.0,0.00011273,2]
[323508786,1714059057076,-345.97,0.00011273,2]
[323508787,1714059057086,-555.07,0.00011273,2]
[323508788,1714059057096,-500.0,0.00011273,2]
[323508789,1714059057105,-500.0,0.00011273,2]
[323508790,1714059057114,-388.22,0.00011273,2]
[323508791,1714059057125,-500.0,0.00011273,2]
[323508792,1714059057135,-500.0,0.00011273,2]
[323508793,1714059057144,-500.0,0.00011273,2]
[323508794,1714059057154,-500.0,0.00011273,2]
[323508795,1714059057163,-500.0,0.00011273,2]
[323508796,1714059057173,-500.0,0.00011273,2]
[323508797,1714059057182,-500.0,0.00011273,2]
[323508798,1714059057191,-500.0,0.00011273,2]
[323508799,1714059057200,-500.0,0.00011273,2]
[323508800,1714059057209,-500.0,0.00011273,2]
[323508801,1714059057219,-500.0,0.00011273,2]
[323508802,1714059057229,-221.71,0.00011273,2]
[323508803,1714059057238,-892.56,0.00011273,2]
[323508804,1714059057248,-588.18,0.00011273,2]
[323508805,1714059057257,-500.0,0.00011273,2]
[323508806,1714059057267,-500.0,0.00011273,2]
[323508807,1714059057276,-500.0,0.00011273,2]
[323508808,1714059057286,-500.0,0.00011273,2]
[323508809,1714059057295,-500.0,0.00011273,2]
[323508810,1714059057305,-500.0,0.00011273,2]
[323508811,1714059057315,-506.71028523,0.00011273,2]
[323508812,1714059057324,-508.48345372,0.00011273,2]
[323508813,1714059057334,-500.0,0.00011273,2]
[323508814,1714059057343,-500.0,0.00011273,2]
[323508815,1714059057352,-500.0,0.00011273,2]
[323508816,1714059057362,-457.61,0.00011273,2]
[323508817,1714059057371,-500.0,0.00011273,2]
[323508818,1714059057381,-500.0,0.00011273,2]
[323508819,1714059057391,-500.0,0.00011273,2]
[323508820,1714059057400,-500.0,0.00011273,2]
[323508821,1714059057410,-500.0,0.00011273,2]
[323508822,1714059057419,-500.0,0.00011273,2]
[323508823,1714059057429,-500.0,0.00011273,2]
[323508824,1714059057438,-500.0,0.00011273,2]
[323508825,1714059057447,-500.0,0.00011273,2]
[323508826,1714059057456,-501.18,0.00011273,2]
[323508827,1714059057465,-500.0,0.00011273,2]
[323508828,1714059057475,-800.1,0.00011273,2]
[323508829,1714059057484,-500.0,0.00011273,2]
[323508830,1714059057493,-596.65250189,0.00011273,2]
[323508831,1714059057503,-500.0,0.00011273,2]
[323508832,1714059057513,-555.99,0.00011273,2]
[323508833,1714059057523,-541.47,0.00011273,2]
[323508834,1714059057533,-666.31,0.00011273,2]
[323508835,1714059057543,-500.0,0.00011273,2]
[323508836,1714059057555,-646.81481525,0.00011273,2]
[323508837,1714059057565,-500.0,0.00011273,2]
[323508838,1714059057574,-530.36929494,0.00011273,2]
[323508839,1714059057584,-500.0,0.00011273,2]
[323508840,1714059057593,-500.0,0.00011273,2]
[323508841,1714059057602,-500.0,0.00011273,2]
[323508842,1714059057611,-500.0,0.00011273,2]
[323508843,1714059057621,-500.0,0.00011273,2]
[323508844,1714059057631,-500.0,0.00011273,2]
[323508845,1714059057641,-500.0,0.00011273,2]
[323508846,1714059057650,-500.0,0.00011273,2]
[323508847,1714059057660,-501.86160851,0.00011273,2]
[323508848,1714059057669,-789.54,0.00011273,2]
[323508849,1714059057679,-526.56,0.00011273,2]
[323508850,1714059057688,-500.0,0.00011273,2]
[323508851,1714059057697,-503.88737166,0.00011273,2]
[323508852,1714059057706,-504.84142118,0.00011273,2]
[323508853,1714059057716,-2043.0,0.00011273,2]
[323508854,1714059057725,-500.0,0.00011273,2]
[323508855,1714059057735,-524.02,0.00011273,2]
[323508856,1714059057747,-500.0,0.00011273,2]
[323508857,1714059057757,-500.0,0.00011273,2]
[323508858,1714059057766,-500.0,0.00011273,2]
[323508859,1714059057778,-478.61149268,0.00011273,2]
[323508860,1714059057787,-468.08,0.00011273,2]
[323508861,1714059057796,-500.0,0.00011273,2]
[323508862,1714059057805,-500.0,0.00011273,2]
[323508863,1714059057814,-500.0,0.00011273,2]
[323508864,1714059057824,-500.0,0.00011273,2]
[323508865,1714059057833,-521.49850467,0.00011273,2]
[323508866,1714059057842,-500.0,0.00011273,2]
[323508867,1714059057852,-500.0,0.00011273,2]
[323508868,1714059057861,-5875.09,0.00011273,2]
[323508869,1714059057870,-500.0,0.00011273,2]
[323508870,1714059057879,-500.0,0.00011273,2]
[323508871,1714059057888,-500.0,0.00011273,2]
[323508872,1714059057898,-500.0,0.00011273,2]
[323508873,1714059057907,-1728.53,0.00011273,2]
[323508874,1714059057917,-529.48,0.00011273,2]
[323508875,1714059057925,-565.21,0.00011273,2]
[323508876,1714059057935,-500.0,0.00011273,2]
[323508877,1714059057944,-7367.99,0.00011273,2]
[323508878,1714059057953,-500.0,0.00011273,2]
[323508879,1714059057962,-500.0,0.00011273,2]
[323508880,1714059057975,-567.49169764,0.00011273,2]
[323508881,1714059058012,-500.0,0.00011273,2]
[323508882,1714059058023,-500.0,0.00011273,2]
[323508883,1714059058033,-500.0,0.00011273,2]
[323508884,1714059058042,-500.0,0.00011273,2]
[323508885,1714059058052,-500.0,0.00011273,2]
[323508886,1714059058062,-3915.64,0.00011273,2]
[323508887,1714059058071,-500.0,0.00011273,2]
[323508888,1714059058081,-598.87,0.00011273,2]
[323508889,1714059058092,-500.0,0.00011273,2]
[323508890,1714059058101,-4000.0,0.000113,4]
[323508891,1714059058112,-1589.05021031,0.00011304,2]
[323508892,1714059058122,-201.41139642,0.00011308,2]
[323508893,1714059058132,-1589.05021031,0.0001137,2]
[323508894,1714059058141,-5000.0,0.000114,4]
[323508895,1714059058151,-1589.05021031,0.00011436,2]
[323508896,1714059058161,-159.17053202,0.00011445,2]
[323508897,1714059058170,-201.41139642,0.00011445,2]
[323508898,1714059058182,-1000.0,0.000115,4]
[323508899,1714059058192,-1589.05021031,0.00011502,2]
[323508900,1714059058201,-355.91439222,0.00011534,2]
[323508901,1714059058211,-150.0,0.00011534,2]
[323508902,1714059058220,-150.0,0.00011534,2]
[323508903,1714059058230,-355.91439222,0.00011535,2]
[323508904,1714059058240,-156.07500128,0.00011543,2]
[323508905,1714059058250,-1285.53,0.00011543,2]
[323508906,1714059058260,-500.0,0.00011543,2]
[323508907,1714059058271,-582.7,0.00011543,2]
[323508908,1714059058281,-1404.61,0.00011543,2]
[323508909,1714059058290,-500.0,0.00011543,2]
[323508910,1714059058300,-500.0,0.00011543,2]
[323508911,1714059058309,-772.79,0.00011543,2]
[323508912,1714059058318,-6923.7,0.00011543,2]
[323508913,1714059058328,-500.0,0.00011543,2]
[323508914,1714059058337,-3042.8,0.00011543,2]
[323508915,1714059058347,-4452.19,0.00011543,2]
[323508916,1714059058358,-500.0,0.00011543,2]
[323508917,1714059058367,-857.94,0.00011543,2]
[323508918,1714059058378,-500.0,0.00011543,2]
[323508919,1714059058387,-2130.51,0.00011543,2]
[323508920,1714059058397,-500.0,0.00011543,2]
[323508921,1714059058406,-677.62,0.00011543,2]
[323508922,1714059058415,-500.0,0.00011543,2]
[323508923,1714059058426,-656.76,0.00011543,2]
[323508924,1714059058436,-2711.66,0.00011543,2]
[323508925,1714059058445,-500.0,0.00011543,2]
[323508926,1714059058454,-500.0,0.00011543,2]
[323508927,1714059058464,-5260.5,0.00011543,2]
[323508928,1714059058474,-855.68,0.00011543,2]
[323508929,1714059058483,-678.72,0.00011543,2]
[323508930,1714059058492,-500.0,0.00011543,2]
[323508931,1714059058502,-500.0,0.00011543,2]
[323508932,1714059058512,-500.0,0.00011543,2]
[323508933,1714059058523,-500.0,0.00011543,2]
[323508934,1714059058534,-500.0,0.00011543,2]
[323508935,1714059058544,-500.0,0.00011543,2]
[323508936,1714059058554,-500.0,0.00011543,2]
[323508937,1714059058563,-797.71,0.00011543,2]
[323508938,1714059058574,-500.0,0.00011543,2]
[323508939,1714059058584,-18150.15,0.00011543,2]
[323508940,1714059058593,-500.0,0.00011543,2]
[323508941,1714059058603,-500.0,0.00011543,2]
[323508942,1714059058612,-504.14831429,0.00011544,2]
[323508943,1714059058621,-501.79656691,0.00011544,2]
[323508944,1714059058633,-500.0,0.00011544,2]
[323508945,1714059058643,-613.85,0.00011544,2]
[323508946,1714059058653,-542.98547448,0.00011544,2]
[323508947,1714059058662,-500.0,0.00011544,2]
[323508948,1714059058673,-526.29,0.00011544,2]
[323508949,1714059058683,-500.0,0.00011544,2]
[323508950,1714059058693,-500.0,0.00011544,2]
[323508951,1714059058704,-622.9,0.00011544,2]
[323508952,1714059058715,-500.0,0.00011544,2]
[323508953,1714059058726,-555.41,0.00011544,2]
[323508954,1714059058735,-704.3,0.00011544,2]
[323508955,1714059058748,-500.0,0.00011544,2]
[323508956,1714059058757,-500.0,0.00011544,2]
[323508957,1714059058767,-500.0,0.00011544,2]
[323508958,1714059058777,-500.0,0.00011544,2]
[323508959,1714059058788,-500.0,0.00011544,2]
[323508960,1714059058799,-500.0,0.00011544,2]
[323508961,1714059058811,-500.0,0.00011544,2]
[323508962,1714059058821,-500.0,0.00011544,2]
[323508963,1714059058832,-500.0,0.00011544,2]
[323508964,1714059058842,-500.0,0.00011544,2]
[323508965,1714059058852,-500.0,0.00011544,2]
[323508966,1714059059001,-592.21,0.00011544,2]
[323508967,1714059059011,-500.0,0.00011544,2]
[323508968,1714059059022,-500.0,0.00011544,2]
[323508969,1714059059032,-560.31991835,0.00011544,2]
[323508970,1714059059042,-471.99,0.00011544,2]
[323508971,1714059059051,-500.0,0.00011544,2]
[323508972,1714059059061,-500.0,0.00011544,2]
[323508973,1714059059071,-500.0,0.00011544,2]
[323508974,1714059059080,-500.0,0.00011544,2]
[323508975,1714059059089,-500.0,0.00011544,2]
[323508976,1714059059099,-500.0,0.00011544,2]
[323508977,1714059059109,-500.0,0.00011544,2]
[323508978,1714059059119,-500.0,0.00011544,2]
[323508979,1714059059128,-500.0,0.00011544,2]
[323508980,1714059059138,-500.0,0.00011544,2]
[323508981,1714059059148,-931.81,0.00011544,2]
[323508982,1714059059158,-543.73573728,0.00011544,2]
[323508983,1714059059168,-500.0,0.00011544,2]
[323508984,1714059059178,-502.28,0.00011544,2]
[323508985,1714059059188,-507.58,0.00011544,2]
[323508986,1714059059198,-150.0,0.00011544,2]
[323508987,1714059059208,-500.0,0.00011544,2]
[323508988,1714059059218,-511.14202875,0.00011544,2]
[323508989,1714059059228,-500.0,0.00011544,2]
[323508990,1714059059238,-500.0,0.00011544,2]
[323508991,1714059059247,-500.0,0.00011544,2]
[323508992,1714059059258,-500.0,0.00011544,2]
[323508993,1714059059267,-500.0,0.00011544,2]
[323508994,1714059059278,-500.0,0.00011544,2]
[323508995,1714059059290,-500.0,0.00011544,2]
[323508996,1714059059299,-500.0,0.00011544,2]
[323508997,1714059059309,-500.0,0.00011544,2]
[323508998,1714059059319,-500.0,0.00011544,2]
[323508999,1714059059329,-500.0,0.00011544,2]
[323509000,1714059059342,-2221.47,0.00011544,2]
[323509001,1714059059352,-763.48,0.00011544,2]
[323509002,1714059059361,-500.0,0.00011544,2]
[323509003,1714059059372,-500.0,0.00011544,2]
[323509004,1714059059382,-3166.59,0.00011544,2]
[323509005,1714059059392,-500.0,0.00011544,2]
[323509006,1714059059401,-500.0,0.00011544,2]
[323509007,1714059059411,-1916.62,0.00011544,2]
[323509008,1714059059421,-500.0,0.00011544,2]
[323509009,1714059059431,-639.23,0.00011544,2]
[323509010,1714059059441,-500.0,0.00011544,2]
[323509011,1714059059452,-1586.58,0.00011544,2]